fUST/lending_fUST_20250701
["ID","MTS","AMOUNT","RATE_DAILY","PERIOD"]
[368852626,1751376679999,-20974.46457981,0.0002468,2]
[368852627,1751376680008,-500.0,0.00024746,2]
[368852628,1751376680018,-500.0,0.00024769,2]
[368852629,1751376680029,-6863.63929137,0.00024797,11]
[368852630,1751376680039,-2000.0,0.000248,2]
[368852631,1751376680051,-2000.0,0.000248,2]
[368852632,1751376680061,-156.93471154,0.000248,2]
[368852633,1751376680077,-297.29613753,0.000248,2]
[368852634,1751376680093,-505.41282813,0.000248,2]
[368852635,1751376680104,-40.3563228,0.000248,2]
[368852636,1751376680114,-1000.0,0.000248,2]
[368852637,1751376680124,-676.52697248,0.000248,2]
[368852638,1751376680135,-323.47302752,0.000248,2]
[368852639,1751376680145,-165.87612382,0.000248,2]
[368852640,1751376680156,-834.12387618,0.000248,2]
[368852641,1751376680165,-1000.0,0.000248,2]
[368852642,1751376680174,-847.06,0.000248,2]
[368852643,1751376680184,-151.0,0.000248,7]
[368852644,1751376680193,-151.0,0.000248,7]
[368852645,1751376680202,-151.0,0.000248,7]
[368852646,1751376680212,-220.051321,0.000248,7]
[368852647,1751376680221,-151.0,0.000248,7]
[368852648,1751376680231,-151.0,0.000248,7]
[368852649,1751376680241,-151.0,0.000248,7]
[368852650,1751376680250,-158.55,0.000248,7]
[368852651,1751376680260,-151.0,0.000248,7]
[368852652,1751376680269,-158.55,0.000248,7]
[368852653,1751376680279,-151.0,0.000248,7]
[368852654,1751376680290,-151.0,0.000248,7]
[368852655,1751376680302,-151.0,0.000248,7]
[368852656,1751376680311,-151.0,0.000248,7]
[368852657,1751376680320,-151.0,0.000248,7]
[368852658,1751376680329,-175.657191,0.000248,7]
[368852659,1751376680339,-175.657191,0.000248,7]
[368852660,1751376680349,-151.0,0.000248,7]
[368852661,1751376680360,-151.0,0.000248,7]
[368852662,1751376680370,-287.086593,0.000248,7]
[368852663,1751376680380,-287.086593,0.000248,7]
[368852664,1751376680391,-151.0,0.000248,7]
[368852665,1751376680401,-285.036699,0.000248,7]
[368852666,1751376680412,-284.495867,0.000248,7]
[368852667,1751376680422,-151.0,0.000248,7]
[368852668,1751376680432,-284.495867,0.000248,7]
[368852669,1751376680442,-151.0,0.000248,7]
[368852670,1751376680452,-69.82365443,0.000248,7]
[368852671,1751376680468,-212.10213457,0.000248,7]
[368852672,1751376680478,-281.925789,0.000248,7]
[368852673,1751376680488,-1066.563368,0.000248,2]
[368852674,1751376680498,-151.0,0.000248,7]
[368852675,1751376680508,-1066.563368,0.000248,2]
[368852676,1751376680517,-151.0,0.000248,7]
[368852677,1751376680528,-7614.75664738,0.000248,2]
[368852678,1751376680545,-151.0,0.00022302,7]
[368852679,1751376680556,-73626.63337842,0.000248,2]
[368852680,1751376680566,-151.0,0.000248,7]
[368852681,1751376680576,-159.486442,0.000248,7]
[368852682,1751376680586,-159.486442,0.000248,7]
[368852683,1751376680596,-297.882111,0.000248,7]
[368852684,1751376680605,-297.882111,0.000248,7]
[368852685,1751376680615,-554.0,0.00024803,2]
[368852686,1751376680626,-500.0,0.00024808,2]
[368852687,1751376680636,-500.0,0.00024827,2]
[368852688,1751376680646,-500.0,0.0002483,2]
[368852689,1751376680656,-500.0,0.00024864,2]
[368852690,1751376680666,-600.0,0.00024885,2]
[368852691,1751376680676,-151.0,0.00024899,7]
[368852692,1751376680840,-151.0,0.00024899,7]
[368852693,1751376680850,-151.0,0.000249,7]
[368852694,1751376680861,-297.136308,0.000249,7]
[368852695,1751376680871,-151.0,0.000249,7]
[368852696,1751376680879,-151.0,0.000249,7]
[368852697,1751376680891,-300.288699,0.000249,7]
[368852698,1751376680901,-151.750508,0.000249,7]
[368852699,1751376680910,-151.0,0.000249,7]
[368852700,1751376680919,-151.0,0.000249,7]
[368852701,1751376680929,-151.0,0.000249,7]
[368852702,1751376680938,-264.82166,0.000249,7]
[368852703,1751376680947,-151.0,0.000249,7]
[368852704,1751376680957,-151.0,0.000249,7]
[368852705,1751376680967,-158.55,0.000249,7]
[368852706,1751376680976,-151.0,0.000249,7]
[368852707,1751376680985,-158.55,0.000249,7]
[368852708,1751376680994,-151.0,0.000249,7]
[368852709,1751376681004,-151.0,0.000249,7]
[368852710,1751376681013,-151.0,0.000249,7]
[368852711,1751376681023,-151.0,0.000249,7]
[368852712,1751376681033,-250.0,0.000249,2]
[368852713,1751376681042,-250.0,0.000249,2]
[368852714,1751376681052,-250.0,0.000249,2]
[368852715,1751376681061,-250.0,0.000249,2]
[368852716,1751376681070,-250.0,0.000249,2]
[368852717,1751376681079,-250.0,0.000249,2]
[368852718,1751376681089,-250.0,0.000249,2]
[368852719,1751376681098,-250.0,0.000249,2]
[368852720,1751376681107,-250.0,0.000249,2]
[368852721,1751376681116,-250.0,0.000249,2]
[368852722,1751376681125,-250.0,0.000249,2]
[368852723,1751376681135,-250.0,0.000249,2]
[368852724,1751376681144,-250.0,0.000249,2]
[368852725,1751376681153,-250.0,0.000249,2]
[368852726,1751376681162,-250.0,0.000249,2]
[368852727,1751376681171,-250.0,0.000249,2]
[368852728,1751376681181,-250.0,0.000249,2]
[368852729,1751376681190,-312.2,0.000249,2]
[368852730,1751376681199,-151.0,0.000249,7]
[368852731,1751376681208,-211.131602,0.000249,7]
[368852732,1751376681218,-175.657191,0.000249,7]
[368852733,1751376681227,-175.657191,0.000249,7]
[368852734,1751376681236,-151.0,0.000249,7]
[368852735,1751376681247,-151.0,0.000249,7]
[368852736,1751376681256,-167.335476,0.000249,7]
[368852737,1751376681266,-151.0,0.000249,7]
[368852738,1751376681275,-167.335476,0.000249,7]
[368852739,1751376681284,-151.0,0.000249,7]
[368852740,1751376681293,-151.0,0.000249,7]
[368852741,1751376681306,-151.0,0.000249,7]
[368852742,1751376681316,-151.0,0.000249,7]
[368852743,1751376681325,-201.699608,0.000249,7]
[368852744,1751376681335,-201.699608,0.000249,7]
[368852745,1751376681344,-151.0,0.000249,7]
[368852746,1751376681354,-271.8,0.000249,7]
[368852747,1751376681363,-271.8,0.000249,7]
[368852748,1751376681372,-721.480194,0.000249,7]
[368852749,1751376681382,-721.480194,0.000249,7]
[368852750,1751376681391,-287.086593,0.000249,7]
[368852751,1751376681401,-287.086593,0.000249,7]
[368852752,1751376681411,-151.0,0.000249,7]
[368852753,1751376681421,-284.495867,0.000249,7]
[368852754,1751376681430,-151.0,0.000249,7]
[368852755,1751376681441,-284.495867,0.000249,7]
[368852756,1751376681451,-151.0,0.000249,7]
[368852757,1751376681460,-281.925789,0.000249,7]
[368852758,1751376681470,-281.925789,0.000249,7]
[368852759,1751376681480,-1066.563368,0.000249,2]
[368852760,1751376681489,-151.0,0.000249,7]
[368852761,1751376681499,-1066.563368,0.000249,2]
[368852762,1751376681508,-151.0,0.000249,7]
[368852763,1751376681518,-642870.582285,0.000249,2]
[368852764,1751376681528,-151.0,0.000249,7]
[368852765,1751376681537,-151.0,0.000249,7]
[368852766,1751376681547,-159.486442,0.000249,7]
[368852767,1751376681559,-159.486442,0.000249,7]
[368852768,1751376681568,-297.882111,0.000249,7]
[368852769,1751376681577,-297.882111,0.000249,7]
[368852770,1751376681587,-264.262535,0.000249,7]
[368852771,1751376681596,-151.0,0.000249,7]
[368852772,1751376681606,-151.0,0.000249,7]
[368852773,1751376681616,-800.0,0.00024913,2]
[368852774,1751376681626,-500.0,0.00024916,2]
[368852775,1751376681636,-2804.08914622,0.00024923,2]
[368852776,1751376681646,-554.0,0.00024981,2]
[368852777,1751376681656,-245.0,0.00024987,2]
[368852778,1751376681666,-151.0,0.00024987,2]
[368852779,1751376681676,-245.0,0.00024987,2]
[368852780,1751376681686,-151.30509514,0.00024987,2]
[368852781,1751376681696,-151.0,0.00024987,2]
[368852782,1751376681706,-500.0,0.00024987,2]
[368852783,1751376681716,-554.0,0.00024995,2]
[368852784,1751376681726,-38658.57665945,0.00025,2]
[368852785,1751376681736,-465.02039592,0.00025,2]
[368852786,1751376681746,-14118.71281433,0.00025,2]
[368852787,1751376681757,-223.27068908,0.00025,120]
[368852788,1751376681766,-2614.17144256,0.00025,2]
[368852789,1751376681776,-207.37308953,0.00025,2]
[368852790,1751376681786,-357.96607673,0.00025,2]
[368852791,1751376681797,-10364.0,0.00025,2]
[368852792,1751376681810,-575.21541413,0.00025,120]
[368852793,1751376681820,-150.0,0.00025,2]
[368852794,1751376681830,-17830.03255277,0.00025,10]
[368852795,1751376681845,-7270.89659576,0.00025,10]
[368852796,1751376681862,-240571.88939409,0.00025,10]
[368852797,1751376681871,-150.0,0.00025,3]
[368852798,1751376681881,-120000.0,0.00025,2]
[368852799,1751376681891,-637.199999,0.00025,60]
[368852800,1751376681901,-600.0,0.00025,2]
[368852801,1751376681911,-25000.0,0.00025,50]
[368852802,1751376681920,-2000.0,0.00025,120]
[368852803,1751376681930,-151.0,0.00025,7]
[368852804,1751376681940,-151.0,0.00025,7]
[368852805,1751376681949,-2000.0,0.00025,2]
[368852806,1751376681959,-1000.0,0.00025,2]
[368852807,1751376681968,-166.0,0.00025,7]
[368852808,1751376681978,-158.361465,0.00025,7]
[368852809,1751376681987,-151.0,0.00025,7]
[368852810,1751376681997,-151.0,0.00025,7]
[368852811,1751376682006,-151.0,0.00025,7]
[368852812,1751376682016,-151.0,0.00025,7]
[368852813,1751376682027,-151.0,0.00025,7]
[368852814,1751376682037,-225.065116,0.00025,7]
[368852815,1751376682047,-158.55,0.00025,7]
[368852816,1751376682059,-151.0,0.00025,7]
[368852817,1751376682068,-158.55,0.00025,7]
[368852818,1751376682077,-151.0,0.00025,7]
[368852819,1751376682086,-151.0,0.00025,7]
[368852820,1751376682097,-151.0,0.00025,7]
[368852821,1751376682108,-151.0,0.00025,7]
[368852822,1751376682117,-204.45002927,0.00025,3]
[368852823,1751376682126,-151.0,0.00025,7]
[368852824,1751376682136,-318.0,0.00025,3]
[368852825,1751376682145,-318.0,0.00025,3]
[368852826,1751376682154,-319.92909851,0.00025,3]
[368852827,1751376682164,-175.657191,0.00025,7]
[368852828,1751376682173,-175.657191,0.00025,7]
[368852829,1751376682183,-151.0,0.00025,7]
[368852830,1751376682193,-254.863323,0.00025,7]
[368852831,1751376682203,-167.335476,0.00025,7]
[368852832,1751376682213,-151.0,0.00025,7]
[368852833,1751376682223,-167.335476,0.00025,7]
[368852834,1751376682233,-151.0,0.00025,7]
[368852835,1751376682243,-151.0,0.00025,7]
[368852836,1751376682252,-151.0,0.00025,7]
[368852837,1751376682262,-1978.578016,0.00025,5]
[368852838,1751376682271,-201.699608,0.00025,7]
[368852839,1751376682281,-201.699608,0.00025,7]
[368852840,1751376682291,-163.0,0.00025,7]
[368852841,1751376682300,-151.0,0.00025,7]
[368852842,1751376682314,-271.8,0.00025,7]
[368852843,1751376682323,-271.8,0.00025,7]
[368852844,1751376682333,-721.480194,0.00025,7]
[368852845,1751376682343,-721.480194,0.00025,7]
[368852846,1751376682352,-245.40758445,0.00025,3]
[368852847,1751376682362,-151.0,0.00025,3]
[368852848,1751376682371,-151.0,0.00025,3]
[368852849,1751376682381,-151.0,0.00025,3]
[368852850,1751376682391,-151.0,0.00025,3]
[368852851,1751376682401,-151.0,0.00025,3]
[368852852,1751376682411,-287.086593,0.00025,7]
[368852853,1751376682422,-151.0,0.00025,3]
[368852854,1751376682431,-151.0,0.00025,3]
[368852855,1751376682441,-151.0,0.00025,3]
[368852856,1751376682450,-151.0,0.00025,3]
[368852857,1751376682460,-151.0,0.00025,3]
[368852858,1751376682470,-151.0,0.00025,3]
[368852859,1751376682479,-151.0,0.00025,3]
[368852860,1751376682489,-151.0,0.00025,3]
[368852861,1751376682500,-151.0,0.00025,3]
[368852862,1751376682511,-151.0,0.00025,3]
[368852863,1751376682520,-151.0,0.00025,3]
[368852864,1751376682530,-151.0,0.00025,3]
[368852865,1751376682539,-151.0,0.00025,3]
[368852866,1751376682549,-287.086593,0.00025,7]
[368852867,1751376682560,-151.0,0.00025,3]
[368852868,1751376682571,-151.0,0.00025,3]
[368852869,1751376682580,-151.0,0.00025,3]
[368852870,1751376682590,-151.0,0.00025,3]
[368852871,1751376682599,-151.0,0.00025,3]
[368852872,1751376682609,-151.0,0.00025,3]
[368852873,1751376682618,-151.0,0.00025,3]
[368852874,1751376682628,-151.0,0.00025,3]
[368852875,1751376682637,-151.0,0.00025,3]
[368852876,1751376682646,-151.0,0.00025,3]
[368852877,1751376682655,-288.45467046,0.00025,3]
[368852878,1751376682666,-215.01728679,0.00025,10]
[368852879,1751376682676,-151.0,0.00025,7]
[368852880,1751376682686,-284.495867,0.00025,7]
[368852881,1751376682696,-151.0,0.00025,7]
[368852882,1751376682705,-284.495867,0.00025,7]
[368852883,1751376682715,-151.0,0.00025,7]
[368852884,1751376682724,-281.925789,0.00025,7]
[368852885,1751376682734,-281.925789,0.00025,7]
[368852886,1751376682744,-160.0,0.00025,10]
[368852887,1751376682753,-41400.96,0.00025,2]
[368852888,1751376682763,-1066.563368,0.00025,2]
[368852889,1751376682773,-151.0,0.00025,7]
[368852890,1751376682783,-1066.563368,0.00025,2]
[368852891,1751376682794,-837.20943635,0.00025,10]
[368852892,1751376682805,-151.0,0.00025,7]
[368852893,1751376682815,-160.0,0.00025,10]
[368852894,1751376682826,-200337.80254322,0.00025,2]
[368852895,1751376682836,-230.32585361,0.00025,10]
[368852896,1751376682846,-847.53272281,0.00025,10]
[368852897,1751376682856,-202.828249,0.00025,2]
[368852898,1751376682867,-213.87551669,0.00025,10]
[368852899,1751376682876,-151.0,0.00025,7]
[368852900,1751376682887,-151.0,0.00025,7]
[368852901,1751376682896,-159.486442,0.00025,7]
[368852902,1751376682905,-159.486442,0.00025,7]
[368852903,1751376682915,-297.882111,0.00025,7]
[368852904,1751376682924,-297.882111,0.00025,7]
[368852905,1751376682934,-151.0,0.00025,7]
[368852906,1751376682943,-151.0,0.00025,7]
[368852907,1751376682952,-2003.34101002,0.0002501,2]
[368852908,1751376682962,-596.13337184,0.00025013,2]
[368852909,1751376682971,-288.0,0.00025014,2]
[368852910,1751376682982,-500.0,0.00025014,2]
[368852911,1751376682991,-896.06,0.00025037,7]
[368852912,1751376683002,-500.0,0.00025042,2]
[368852913,1751376683011,-500.0,0.00025054,2]
[368852914,1751376683021,-500.0,0.00025069,2]
[368852915,1751376683031,-6863.63929137,0.00025072,12]
[368852916,1751376683041,-500.0,0.00025097,2]
[368852917,1751376683051,-5317.41,0.000251,7]
[368852918,1751376683062,-42777.75,0.000251,7]
[368852919,1751376683071,-572.436795,0.00025116,2]
[368852920,1751376683080,-500.0,0.00025124,2]
[368852921,1751376683089,-5888.0,0.00025124,2]
[368852922,1751376683098,-1670.304474,0.00025133,60]
[368852923,1751376683108,-896.06,0.00025137,3]
[368852924,1751376683118,-300.66,0.0002514,60]
[368852925,1751376683127,-500.0,0.00025142,7]
[368852926,1751376683136,-500.0,0.00025142,15]
[368852927,1751376683145,-446.21,0.00025142,15]
[368852928,1751376683156,-633.23480835,0.00025145,120]
[368852929,1751376683165,-550.89692743,0.00025147,2]
[368852930,1751376683175,-500.0,0.0002515,120]
[368852931,1751376683185,-501.5397799,0.0002515,120]
[368852932,1751376683195,-151.0,0.00025175,7]
[368852933,1751376683204,-151.0,0.00025175,7]
[368852934,1751376683213,-151.0,0.00025175,7]
[368852935,1751376683222,-161.121423,0.00025175,7]
[368852936,1751376683232,-151.0,0.00025175,7]
[368852937,1751376683241,-151.0,0.00025175,7]
[368852938,1751376683251,-151.0,0.00025175,7]
[368852939,1751376683260,-151.0,0.00025175,7]
[368852940,1751376683269,-203.561116,0.00025175,7]
[368852941,1751376683279,-175.657191,0.00025175,7]
[368852942,1751376683288,-175.657191,0.00025175,7]
[368852943,1751376683297,-175.657191,0.00025175,7]
[368852944,1751376683308,-175.657191,0.00025175,7]
[368852945,1751376683317,-175.657191,0.00025175,7]
[368852946,1751376683327,-175.657191,0.00025175,7]
[368852947,1751376683336,-175.657191,0.00025175,7]
[368852948,1751376683345,-175.657191,0.00025175,7]
[368852949,1751376683354,-175.657191,0.00025175,7]
[368852950,1751376683363,-175.657198,0.00025175,7]
[368852951,1751376683373,-151.0,0.00025175,7]
[368852952,1751376683382,-151.0,0.00025175,7]
[368852953,1751376683392,-151.0,0.00025175,7]
[368852954,1751376683401,-151.0,0.00025175,7]
[368852955,1751376683411,-151.0,0.00025175,7]
[368852956,1751376683420,-167.335476,0.00025175,7]
[368852957,1751376683429,-167.335476,0.00025175,7]
[368852958,1751376683438,-167.335476,0.00025175,7]
[368852959,1751376683448,-167.335476,0.00025175,7]
[368852960,1751376683458,-167.335476,0.00025175,7]
[368852961,1751376683467,-151.0,0.00025175,7]
[368852962,1751376683476,-151.0,0.00025175,7]
[368852963,1751376683486,-151.0,0.00025175,7]
[368852964,1751376683495,-151.0,0.00025175,7]
[368852965,1751376683505,-167.335476,0.00025175,7]
[368852966,1751376683515,-151.0,0.00025175,7]
[368852967,1751376683524,-167.335476,0.00025175,7]
[368852968,1751376683533,-167.335476,0.00025175,7]
[368852969,1751376683543,-167.335476,0.00025175,7]
[368852970,1751376683554,-167.335483,0.00025175,7]
[368852971,1751376683564,-151.0,0.00025175,7]
[368852972,1751376683574,-196.573232,0.00025175,7]
[368852973,1751376683584,-151.0,0.00025175,7]
[368852974,1751376683593,-151.0,0.00025175,7]
[368852975,1751376683604,-151.0,0.00025175,7]
[368852976,1751376683613,-201.699608,0.00025175,7]
[368852977,1751376683622,-201.699608,0.00025175,7]
[368852978,1751376683632,-201.699608,0.00025175,7]
[368852979,1751376683642,-201.699608,0.00025175,7]
[368852980,1751376683652,-201.699608,0.00025175,7]
[368852981,1751376683662,-201.699604,0.00025175,7]
[368852982,1751376683671,-151.0,0.00025175,7]
[368852983,1751376683681,-151.0,0.00025175,7]
[368852984,1751376683691,-271.8,0.00025175,7]
[368852985,1751376683700,-271.8,0.00025175,7]
[368852986,1751376683711,-271.8,0.00025175,7]
[368852987,1751376683721,-271.8,0.00025175,7]
[368852988,1751376683731,-271.8,0.00025175,7]
[368852989,1751376683741,-271.8,0.00025175,7]
[368852990,1751376683751,-721.480194,0.00025175,7]
[368852991,1751376683761,-721.480194,0.00025175,7]
[368852992,1751376683906,-721.480194,0.00025175,7]
[368852993,1751376683916,-721.480194,0.00025175,7]
[368852994,1751376683926,-721.480194,0.00025175,7]
[368852995,1751376683935,-721.480198,0.00025175,7]
[368852996,1751376683945,-287.086593,0.00025175,7]
[368852997,1751376683954,-287.086593,0.00025175,7]
[368852998,1751376683964,-287.086593,0.00025175,7]
[368852999,1751376683974,-287.086591,0.00025175,7]
[368853000,1751376683983,-169.28,0.00025175,2]
[368853001,1751376683992,-575.5050994,0.00025178,2]
[368853002,1751376684001,-153.0,0.00025178,2]
[368853003,1751376684011,-177.5971231,0.00025178,2]
[368853004,1751376684021,-575.5050994,0.00025178,2]
[368853005,1751376684030,-153.0,0.00025178,2]
[368853006,1751376684039,-575.5050994,0.00025178,2]
[368853007,1751376684050,-177.5971231,0.00025178,2]
[368853008,1751376684059,-153.0,0.00025178,2]
[368853009,1751376684068,-575.5050994,0.00025178,2]
[368853010,1751376684078,-177.5971231,0.00025178,2]
[368853011,1751376684087,-153.0,0.00025178,2]
[368853012,1751376684096,-575.5050994,0.00025178,2]
[368853013,1751376684105,-177.5971231,0.00025178,2]
[368853014,1751376684114,-177.5971231,0.00025178,2]
[368853015,1751376684123,-575.5050994,0.00025178,2]
[368853016,1751376684132,-575.5050994,0.00025178,2]
[368853017,1751376684142,-177.5971231,0.00025178,2]
[368853018,1751376684152,-575.5050994,0.00025178,2]
[368853019,1751376684161,-177.5971231,0.00025178,2]
[368853020,1751376684171,-177.5971231,0.00025178,2]
[368853021,1751376684180,-575.5050994,0.00025178,2]
[368853022,1751376684190,-177.5971231,0.00025178,2]
[368853023,1751376684200,-575.5050994,0.00025178,2]
[368853024,1751376684209,-575.5050994,0.00025178,2]
[368853025,1751376684219,-177.5971231,0.00025178,2]
[368853026,1751376684228,-575.5050994,0.00025178,2]
[368853027,1751376684237,-177.5971231,0.00025178,2]
[368853028,1751376684246,-177.5971231,0.00025178,2]
[368853029,1751376684256,-177.5971231,0.00025178,2]
[368853030,1751376684265,-159.3450821,0.00025178,2]
[368853031,1751376684275,-177.5971231,0.00025178,2]
[368853032,1751376684284,-159.3450821,0.00025178,2]
[368853033,1751376684293,-177.5971231,0.00025178,2]
[368853034,1751376684303,-177.5971231,0.00025178,2]
[368853035,1751376684312,-159.3450821,0.00025178,2]
[368853036,1751376684322,-177.5971231,0.00025178,2]
[368853037,1751376684332,-177.5971231,0.00025178,2]
[368853038,1751376684341,-159.3450821,0.00025178,2]
[368853039,1751376684350,-159.3450821,0.00025178,2]
[368853040,1751376684359,-177.5971231,0.00025178,2]
[368853041,1751376684369,-159.3450821,0.00025178,2]
[368853042,1751376684379,-177.5971231,0.00025178,2]
[368853043,1751376684389,-159.3450821,0.00025178,2]
[368853044,1751376684398,-177.5971231,0.00025178,2]
[368853045,1751376684408,-159.3450821,0.00025178,2]
[368853046,1751376684418,-177.5971231,0.00025178,2]
[368853047,1751376684430,-159.3450821,0.00025178,2]
[368853048,1751376684440,-159.3450821,0.00025178,2]
[368853049,1751376684450,-254.3338372,0.00025178,2]
[368853050,1751376684459,-202.4526486,0.00025178,2]
[368853051,1751376684468,-568.3298312,0.00025178,2]
[368853052,1751376684479,-175.9055336,0.00025178,2]
[368853053,1751376684488,-732.117071,0.00025178,2]
[368853054,1751376684500,-366.235562,0.00025178,2]
[368853055,1751376684510,-151.0,0.00025182,7]
[368853056,1751376684519,-151.0,0.00025182,7]
[368853057,1751376684529,-151.0,0.00025182,7]
[368853058,1751376684539,-151.0,0.00025182,7]
[368853059,1751376684548,-151.0,0.00025182,7]
[368853060,1751376684559,-273.071109,0.00025182,7]
[368853061,1751376684569,-151.0,0.00025182,7]
[368853062,1751376684578,-151.0,0.00025182,7]
[368853063,1751376684588,-151.0,0.00025182,7]
[368853064,1751376684597,-151.0,0.00025182,7]
[368853065,1751376684606,-152.868998,0.00025182,7]
[368853066,1751376684616,-151.0,0.00025182,7]
[368853067,1751376684625,-151.0,0.00025182,7]
[368853068,1751376684635,-151.0,0.00025182,7]
[368853069,1751376684645,-151.0,0.00025182,7]
[368853070,1751376684654,-151.0,0.00025182,7]
[368853071,1751376684664,-151.0,0.00025182,7]
[368853072,1751376684673,-151.0,0.00025182,7]
[368853073,1751376684683,-152.798994,0.00025182,7]
[368853074,1751376684692,-151.0,0.00025182,7]
[368853075,1751376684702,-151.0,0.00025182,7]
[368853076,1751376684711,-151.0,0.00025182,7]
[368853077,1751376684721,-226.582455,0.00025182,7]
[368853078,1751376684731,-158.55,0.00025182,7]
[368853079,1751376684741,-158.55,0.00025182,7]
[368853080,1751376684750,-158.55,0.00025182,7]
[368853081,1751376684759,-158.55,0.00025182,7]
[368853082,1751376684770,-151.0,0.00025182,7]
[368853083,1751376684779,-158.55,0.00025182,7]
[368853084,1751376684789,-151.0,0.00025182,7]
[368853085,1751376684799,-158.55,0.00025182,7]
[368853086,1751376684811,-151.0,0.00025182,7]
[368853087,1751376684820,-158.55,0.00025182,7]
[368853088,1751376684830,-158.55,0.00025182,7]
[368853089,1751376684839,-158.55,0.00025182,7]
[368853090,1751376684849,-158.55,0.00025182,7]
[368853091,1751376684859,-158.55,0.00025182,7]
[368853092,1751376684868,-158.55000091,0.00025182,7]
[368853093,1751376684878,-151.0,0.00025182,7]
[368853094,1751376684890,-151.0,0.00025182,7]
[368853095,1751376684901,-151.0,0.00025182,7]
[368853096,1751376684912,-151.0,0.00025182,7]
[368853097,1751376684921,-151.0,0.00025182,7]
[368853098,1751376684931,-151.0,0.00025182,7]
[368853099,1751376684940,-151.0,0.00025182,7]
[368853100,1751376684950,-151.0,0.00025182,7]
[368853101,1751376684960,-151.0,0.00025182,7]
[368853102,1751376684970,-151.0,0.00025182,7]
[368853103,1751376684979,-151.0,0.00025182,7]
[368853104,1751376684989,-156.041421,0.00025182,7]
[368853105,1751376684999,-554.0,0.00025185,2]
[368853106,1751376685008,-293.45627482,0.00025193,2]
[368853107,1751376685018,-151.0,0.00025194,7]
[368853108,1751376685028,-151.0,0.00025194,7]
[368853109,1751376685038,-1974.79,0.000252,7]
[368853110,1751376685047,-307.6867203,0.00025205,2]
[368853111,1751376685057,-153.0,0.00025205,2]
[368853112,1751376685066,-153.0,0.00025205,2]
[368853113,1751376685076,-153.0,0.00025205,2]
[368853114,1751376685086,-153.0,0.00025205,2]
[368853115,1751376685095,-151.0,0.00025216,7]
[368853116,1751376685105,-151.0,0.00025216,7]
[368853117,1751376685114,-284.495867,0.00025216,7]
[368853118,1751376685124,-151.0,0.00025216,7]
[368853119,1751376685133,-213.371398,0.00025216,7]
[368853120,1751376685143,-284.495867,0.00025216,7]
[368853121,1751376685153,-284.495867,0.00025216,7]
[368853122,1751376685162,-284.495865,0.00025216,7]
[368853123,1751376685171,-151.0,0.00025216,7]
[368853124,1751376685182,-151.0,0.00025216,7]
[368853125,1751376685191,-281.925789,0.00025216,7]